[Event "Titled Tuesday Blitz January 31 Early 2023"]
[White "Martinez Alcantara, Jose Eduardo"]
[Black "Kukhmazov, Arsen"]
[WhiteFideId "3805662"]
[BlackFideId "24108260"]
[WhiteElo "2619"]
[BlackElo "2512"]
[Result "1-0"]
[Round "05"]
[TimeControl "180+2"]
[Date "2023.01.31"]
[WhiteClock "0:00:16"]
[BlackClock "0:00:02"]

1. e4 {[%clk 0:03:00]}  c6 {[%clk 0:02:58]} 2. d4 {[%clk 0:03:00]}  d5 {[%clk 0:02:59]} 3. e5 {[%clk 0:03:01]}  Bf5 {[%clk 0:02:59]} 4. h4 {[%clk 0:03:02]}  Qb6 {[%clk 0:02:58]} 5. Nc3 {[%clk 0:03:00]}  h5 {[%clk 0:02:57]} 6. Nf3 {[%clk 0:02:54]}  e6 {[%clk 0:02:53]} 7. Bd3 {[%clk 0:02:54]}  Bxd3 {[%clk 0:02:44]} 8. Qxd3 {[%clk 0:02:54]}  c5 {[%clk 0:02:44]} 9. Ne2 {[%clk 0:02:49]}  Nc6 {[%clk 0:02:43]} 10. c3 {[%clk 0:02:48]}  Nge7 {[%clk 0:02:41]} 11. O-O {[%clk 0:02:36]}  Nf5 {[%clk 0:02:39]} 12. Ng3 {[%clk 0:02:33]}  g6 {[%clk 0:02:23]} 13. Bg5 {[%clk 0:02:30]}  Be7 {[%clk 0:02:18]} 14. Bxe7 {[%clk 0:02:27]}  Ncxe7 {[%clk 0:02:11]} 15. Ne2 {[%clk 0:02:20]}  Nc6 {[%clk 0:02:08]} 16. Qd2 {[%clk 0:02:17]}  O-O-O {[%clk 0:02:07]} 17. Rab1 {[%clk 0:02:10]}  Kb8 {[%clk 0:01:57]} 18. Rfd1 {[%clk 0:02:04]}  Rc8 {[%clk 0:01:54]} 19. b4 {[%clk 0:02:00]}  cxd4 {[%clk 0:01:53]} 20. cxd4 {[%clk 0:01:59]}  Nce7 {[%clk 0:01:52]} 21. g3 {[%clk 0:01:51]}  Rc4 {[%clk 0:01:45]} 22. b5 {[%clk 0:01:52]}  Qc7 {[%clk 0:01:39]} 23. Rb2 {[%clk 0:01:49]}  Nc8 {[%clk 0:01:39]} 24. Qg5 {[%clk 0:01:40]}  Rc2 {[%clk 0:01:23]} 25. Rxc2 {[%clk 0:01:35]}  Qxc2 {[%clk 0:01:24]} 26. Qd2 {[%clk 0:01:35]}  Qxd2 {[%clk 0:01:16]} 27. Rxd2 {[%clk 0:01:36]}  Nb6 {[%clk 0:01:17]} 28. Ng5 {[%clk 0:01:36]}  Nh6 {[%clk 0:01:18]} 29. Rd3 {[%clk 0:01:16]}  Rc8 {[%clk 0:01:18]} 30. Rf3 {[%clk 0:01:17]}  Rc7 {[%clk 0:01:19]} 31. Rc3 {[%clk 0:01:06]}  Nc4 {[%clk 0:01:18]} 32. Kg2 {[%clk 0:01:03]}  Kc8 {[%clk 0:01:14]} 33. Kh3 {[%clk 0:01:01]}  Kd8 {[%clk 0:01:14]} 34. f3 {[%clk 0:01:01]}  Ke7 {[%clk 0:00:41]} 35. g4 {[%clk 0:00:58]}  hxg4+ {[%clk 0:00:42]} 36. fxg4 {[%clk 0:00:59]}  Rc8 {[%clk 0:00:43]} 37. a4 {[%clk 0:00:40]}  Rf8 {[%clk 0:00:42]} 38. Nf4 {[%clk 0:00:38]}  b6 {[%clk 0:00:31]} 39. Ngxe6 {[%clk 0:00:34]}  fxe6 {[%clk 0:00:26]} 40. Nxg6+ {[%clk 0:00:34]}  Kf7 {[%clk 0:00:27]} 41. Nxf8 {[%clk 0:00:35]}  Kxf8 {[%clk 0:00:28]} 42. Rf3+ {[%clk 0:00:33]}  Ke7 {[%clk 0:00:25]} 43. h5 {[%clk 0:00:30]}  Nd2 {[%clk 0:00:24]} 44. Rc3 {[%clk 0:00:23]}  Nf7 {[%clk 0:00:09]} 45. Rc7+ {[%clk 0:00:22]}  Kf8 {[%clk 0:00:10]} 46. Rxa7 {[%clk 0:00:22]}  Nf3 {[%clk 0:00:10]} 47. a5 {[%clk 0:00:22]}  bxa5 {[%clk 0:00:02]} 48. b6 {[%clk 0:00:22]}  Nd8 {[%clk 0:00:03]} 49. h6 {[%clk 0:00:16]}  Kg8 {[%clk 0:00:02]} 50. Ra8 {[%clk 0:00:16]} 1-0


[Site "https://www.chess.com"]

[Event "Titled Tuesday Blitz January 31 Early 2023"]
[White "Talibov, Shiroghlan"]
[Black "Jobava, Baadur"]
[WhiteFideId "13429078"]
[BlackFideId "13601520"]
[WhiteElo "2359"]
[BlackElo "2578"]
[Result "0-1"]
[Round "05"]
[TimeControl "180+2"]
[Date "2023.01.31"]
[WhiteClock "0:00:01"]
[BlackClock "0:00:08"]

1. e4 {[%clk 0:02:59]}  d6 {[%clk 0:02:58]} 2. d4 {[%clk 0:02:58]}  Nf6 {[%clk 0:02:59]} 3. Nc3 {[%clk 0:02:58]}  e5 {[%clk 0:03:00]} 4. Nf3 {[%clk 0:02:55]}  Nbd7 {[%clk 0:03:00]} 5. Be3 {[%clk 0:02:54]}  Be7 {[%clk 0:02:59]} 6. Bc4 {[%clk 0:02:54]}  O-O {[%clk 0:02:59]} 7. O-O {[%clk 0:02:51]}  c6 {[%clk 0:03:00]} 8. a4 {[%clk 0:02:48]}  h6 {[%clk 0:03:00]} 9. h3 {[%clk 0:02:43]}  Re8 {[%clk 0:03:00]} 10. Re1 {[%clk 0:02:37]}  Qc7 {[%clk 0:03:00]} 11. Qd2 {[%clk 0:02:35]}  Bf8 {[%clk 0:03:00]} 12. dxe5 {[%clk 0:02:29]}  dxe5 {[%clk 0:02:57]} 13. Rad1 {[%clk 0:02:26]}  a5 {[%clk 0:02:54]} 14. Nh4 {[%clk 0:02:15]}  Nc5 {[%clk 0:02:51]} 15. f3 {[%clk 0:01:35]}  Be6 {[%clk 0:02:50]} 16. Bxe6 {[%clk 0:01:32]}  Nxe6 {[%clk 0:02:51]} 17. Nf5 {[%clk 0:01:30]}  Rad8 {[%clk 0:02:49]} 18. Qf2 {[%clk 0:01:30]}  h5 {[%clk 0:02:42]} 19. Bb6 {[%clk 0:01:29]}  Qxb6 {[%clk 0:02:34]} 20. Qxb6 {[%clk 0:01:29]}  Bc5+ {[%clk 0:02:34]} 21. Qxc5 {[%clk 0:01:28]}  Nxc5 {[%clk 0:02:35]} 22. Nd6 {[%clk 0:01:25]}  Re7 {[%clk 0:02:23]} 23. Nc4 {[%clk 0:01:25]}  Ra8 {[%clk 0:02:22]} 24. Nb6 {[%clk 0:01:13]}  Ra6 {[%clk 0:02:16]} 25. Rd8+ {[%clk 0:01:11]}  Kh7 {[%clk 0:02:07]} 26. Nc4 {[%clk 0:01:07]}  h4 {[%clk 0:02:05]} 27. Red1 {[%clk 0:01:00]}  Ne6 {[%clk 0:01:34]} 28. Rb8 {[%clk 0:00:59]}  Nf4 {[%clk 0:01:26]} 29. Rdd8 {[%clk 0:00:56]}  Kg6 {[%clk 0:01:26]} 30. Kf2 {[%clk 0:00:46]}  Ra7 {[%clk 0:01:22]} 31. Nd6 {[%clk 0:00:41]}  Rc7 {[%clk 0:01:03]} 32. Nf5 {[%clk 0:00:36]}  Kg5 {[%clk 0:00:51]} 33. Ne3 {[%clk 0:00:21]}  Ne6 {[%clk 0:00:42]} 34. Rh8 {[%clk 0:00:19]}  Rd7 {[%clk 0:00:35]} 35. Ke1 {[%clk 0:00:15]}  Nf4 {[%clk 0:00:34]} 36. Ne2 {[%clk 0:00:15]}  Nxe2 {[%clk 0:00:31]} 37. Kxe2 {[%clk 0:00:16]}  Nh5 {[%clk 0:00:29]} 38. Rhd8 {[%clk 0:00:10]}  Nf4+ {[%clk 0:00:26]} 39. Ke1 {[%clk 0:00:10]}  Rxd8 {[%clk 0:00:21]} 40. Rxd8 {[%clk 0:00:11]}  b5 {[%clk 0:00:22]} 41. axb5 {[%clk 0:00:10]}  cxb5 {[%clk 0:00:23]} 42. Rb8 {[%clk 0:00:10]}  b4 {[%clk 0:00:22]} 43. Rb5 {[%clk 0:00:10]}  f6 {[%clk 0:00:22]} 44. Kf2 {[%clk 0:00:07]}  Rd7 {[%clk 0:00:19]} 45. Ke1 {[%clk 0:00:07]}  Ra7 {[%clk 0:00:18]} 46. Kf2 {[%clk 0:00:07]}  g6 {[%clk 0:00:16]} 47. Ke1 {[%clk 0:00:07]}  Ne6 {[%clk 0:00:12]} 48. Rb6 {[%clk 0:00:05]}  Nd4 {[%clk 0:00:12]} 49. Kd2 {[%clk 0:00:05]}  Rc7 {[%clk 0:00:12]} 50. c3 {[%clk 0:00:03]}  Nb3+ {[%clk 0:00:10]} 51. Kc2 {[%clk 0:00:03]}  Nc5 {[%clk 0:00:11]} 52. Nd5 {[%clk 0:00:03]}  Rc8 {[%clk 0:00:09]} 53. Nxf6 {[%clk 0:00:02]}  b3+ {[%clk 0:00:09]} 54. Kb1 {[%clk 0:00:01]}  a4 {[%clk 0:00:09]} 55. Nd5 {[%clk 0:00:02]}  Nd3 {[%clk 0:00:07]} 56. Rb5 {[%clk 0:00:02]}  Ne1 {[%clk 0:00:07]} 57. Rb6 {[%clk 0:00:01]}  Nxg2 {[%clk 0:00:08]} 0-1


[Site "https://www.chess.com"]

[Event "Titled Tuesday Blitz January 31 Early 2023"]
[White "Azarov, Sergei"]
[Black "Kollars, Dmitrij"]
[WhiteFideId "13501470"]
[BlackFideId "12909572"]
[WhiteElo "2582"]
[BlackElo "2607"]
[Result "0-1"]
[Round "05"]
[TimeControl "180+2"]
[Date "2023.01.31"]
[WhiteClock "0:00:01"]
[BlackClock "0:00:09"]

1. e4 {[%clk 0:03:00]}  e5 {[%clk 0:02:57]} 2. Nf3 {[%clk 0:03:01]}  Nc6 {[%clk 0:02:58]} 3. Bb5 {[%clk 0:03:01]}  a6 {[%clk 0:02:58]} 4. Ba4 {[%clk 0:03:01]}  Nf6 {[%clk 0:02:58]} 5. O-O {[%clk 0:03:01]}  Bc5 {[%clk 0:02:59]} 6. d3 {[%clk 0:02:54]}  b5 {[%clk 0:02:58]} 7. Bb3 {[%clk 0:02:54]}  d6 {[%clk 0:02:59]} 8. Bg5 {[%clk 0:02:54]}  h6 {[%clk 0:02:58]} 9. Bh4 {[%clk 0:02:54]}  Na5 {[%clk 0:02:57]} 10. Nc3 {[%clk 0:02:51]}  Nxb3 {[%clk 0:02:50]} 11. axb3 {[%clk 0:02:51]}  g5 {[%clk 0:02:50]} 12. Bg3 {[%clk 0:02:49]}  Bg4 {[%clk 0:02:49]} 13. Qe2 {[%clk 0:02:36]}  Nh5 {[%clk 0:02:48]} 14. Nd5 {[%clk 0:02:30]}  Nf4 {[%clk 0:02:37]} 15. Bxf4 {[%clk 0:02:28]}  gxf4 {[%clk 0:02:37]} 16. b4 {[%clk 0:02:21]}  Ba7 {[%clk 0:02:34]} 17. c4 {[%clk 0:02:03]}  c6 {[%clk 0:02:33]} 18. Nc3 {[%clk 0:02:01]}  Rg8 {[%clk 0:02:18]} 19. Kh1 {[%clk 0:02:00]}  Bd4 {[%clk 0:02:17]} 20. Qc2 {[%clk 0:01:47]}  Bxf3 {[%clk 0:02:16]} 21. gxf3 {[%clk 0:01:47]}  Qh4 {[%clk 0:02:10]} 22. Rg1 {[%clk 0:01:30]}  Kd7 {[%clk 0:02:06]} 23. Rxg8 {[%clk 0:00:57]}  Rxg8 {[%clk 0:02:07]} 24. Rg1 {[%clk 0:00:57]}  Rg5 {[%clk 0:01:33]} 25. Nd1 {[%clk 0:00:37]}  Qh3 {[%clk 0:01:26]} 26. Qe2 {[%clk 0:00:36]}  f6 {[%clk 0:01:00]} 27. Nc3 {[%clk 0:00:24]}  Ke7 {[%clk 0:00:35]} 28. Nd1 {[%clk 0:00:24]}  h5 {[%clk 0:00:25]} 29. Nc3 {[%clk 0:00:24]}  Kf7 {[%clk 0:00:13]} 30. Nd1 {[%clk 0:00:25]}  Kg6 {[%clk 0:00:10]} 31. Nc3 {[%clk 0:00:25]}  Qh4 {[%clk 0:00:06]} 32. Nd1 {[%clk 0:00:23]}  c5 {[%clk 0:00:05]} 33. bxc5 {[%clk 0:00:21]}  dxc5 {[%clk 0:00:06]} 34. Rg2 {[%clk 0:00:17]}  Qh3 {[%clk 0:00:06]} 35. Rg1 {[%clk 0:00:14]}  b4 {[%clk 0:00:06]} 36. b3 {[%clk 0:00:07]}  a5 {[%clk 0:00:06]} 37. Rxg5+ {[%clk 0:00:03]}  fxg5 {[%clk 0:00:07]} 38. Kg1 {[%clk 0:00:03]}  g4 {[%clk 0:00:08]} 39. fxg4 {[%clk 0:00:01]}  hxg4 {[%clk 0:00:09]} 0-1


[Site "https://www.chess.com"]

[Event "Titled Tuesday Blitz January 31 Early 2023"]
[White "Preotu, Razvan"]
[Black "Bortnyk, Olexandr"]
[WhiteFideId "2613280"]
[BlackFideId "14120828"]
[WhiteElo "2475"]
[BlackElo "2605"]
[Result "0-1"]
[Round "05"]
[TimeControl "180+2"]
[Date "2023.01.31"]
[WhiteClock "0:00:01"]
[BlackClock "0:00:19"]

1. e4 {[%clk 0:03:00]}  Nf6 {[%clk 0:02:43]} 2. e5 {[%clk 0:03:00]}  Nd5 {[%clk 0:02:38]} 3. d4 {[%clk 0:03:00]}  d6 {[%clk 0:02:36]} 4. c4 {[%clk 0:03:00]}  Nb6 {[%clk 0:02:36]} 5. f4 {[%clk 0:03:00]}  dxe5 {[%clk 0:02:35]} 6. fxe5 {[%clk 0:03:01]}  Bf5 {[%clk 0:02:35]} 7. Nc3 {[%clk 0:03:00]}  e6 {[%clk 0:02:35]} 8. Be3 {[%clk 0:02:58]}  Bb4 {[%clk 0:02:35]} 9. Nf3 {[%clk 0:02:58]}  c5 {[%clk 0:02:35]} 10. a3 {[%clk 0:02:50]}  cxd4 {[%clk 0:02:30]} 11. axb4 {[%clk 0:02:48]}  dxe3 {[%clk 0:02:31]} 12. Qxd8+ {[%clk 0:02:47]}  Kxd8 {[%clk 0:02:32]} 13. c5 {[%clk 0:02:47]}  Nd5 {[%clk 0:02:22]} 14. O-O-O {[%clk 0:02:33]}  Nc6 {[%clk 0:02:19]} 15. Nxd5 {[%clk 0:02:30]}  exd5 {[%clk 0:02:19]} 16. Rxd5+ {[%clk 0:02:29]}  Ke7 {[%clk 0:02:18]} 17. Nd4 {[%clk 0:02:19]}  Nxd4 {[%clk 0:02:09]} 18. Rxd4 {[%clk 0:02:20]}  Rhd8 {[%clk 0:02:09]} 19. Rd6 {[%clk 0:01:41]}  a5 {[%clk 0:02:04]} 20. b5 {[%clk 0:01:33]}  Rac8 {[%clk 0:02:01]} 21. c6 {[%clk 0:01:28]}  Rxd6 {[%clk 0:01:56]} 22. exd6+ {[%clk 0:01:29]}  Kxd6 {[%clk 0:01:56]} 23. Bc4 {[%clk 0:01:29]}  bxc6 {[%clk 0:01:56]} 24. b6 {[%clk 0:01:29]}  Rb8 {[%clk 0:01:48]} 25. Re1 {[%clk 0:01:29]}  Rxb6 {[%clk 0:01:39]} 26. Rxe3 {[%clk 0:01:26]}  Be6 {[%clk 0:01:28]} 27. Bxe6 {[%clk 0:01:22]}  fxe6 {[%clk 0:01:29]} 28. Rh3 {[%clk 0:01:03]}  h6 {[%clk 0:01:28]} 29. Rg3 {[%clk 0:00:56]}  Rb7 {[%clk 0:01:25]} 30. Kc2 {[%clk 0:00:54]}  e5 {[%clk 0:01:14]} 31. Ra3 {[%clk 0:00:45]}  Rf7 {[%clk 0:01:07]} 32. Rg3 {[%clk 0:00:28]}  Rf2+ {[%clk 0:01:03]} 33. Kc3 {[%clk 0:00:29]}  g5 {[%clk 0:01:01]} 34. Rh3 {[%clk 0:00:25]}  Rxg2 {[%clk 0:01:01]} 35. Rxh6+ {[%clk 0:00:26]}  Kd5 {[%clk 0:01:01]} 36. b3 {[%clk 0:00:24]}  e4 {[%clk 0:00:57]} 37. Rh8 {[%clk 0:00:22]}  e3 {[%clk 0:00:56]} 38. Kd3 {[%clk 0:00:21]}  e2 {[%clk 0:00:56]} 39. Kd2 {[%clk 0:00:21]}  Kc5 {[%clk 0:00:55]} 40. Rg8 {[%clk 0:00:20]}  Rxh2 {[%clk 0:00:51]} 41. Rxg5+ {[%clk 0:00:20]}  Kb4 {[%clk 0:00:52]} 42. Rg6 {[%clk 0:00:17]}  Kxb3 {[%clk 0:00:39]} 43. Rxc6 {[%clk 0:00:17]}  a4 {[%clk 0:00:40]} 44. Rb6+ {[%clk 0:00:17]}  Ka2 {[%clk 0:00:37]} 45. Rb4 {[%clk 0:00:15]}  a3 {[%clk 0:00:36]} 46. Rb8 {[%clk 0:00:15]}  Ka1 {[%clk 0:00:35]} 47. Rb7 {[%clk 0:00:15]}  a2 {[%clk 0:00:25]} 48. Rb8 {[%clk 0:00:15]}  Rh1 {[%clk 0:00:18]} 49. Kxe2 {[%clk 0:00:15]}  Rb1 {[%clk 0:00:18]} 50. Ra8 {[%clk 0:00:09]}  Kb2 {[%clk 0:00:19]} 51. Rb8+ {[%clk 0:00:01]}  Kc3 {[%clk 0:00:19]} 0-1


[Site "https://www.chess.com"]

[Event "Titled Tuesday Blitz January 31 Early 2023"]
[White "Terry, Renato"]
[Black "Costachi, Mihnea"]
[WhiteFideId "3803457"]
[BlackFideId "1217518"]
[WhiteElo "2520"]
[BlackElo "2476"]
[Result "1-0"]
[Round "05"]
[TimeControl "180+2"]
[Date "2023.01.31"]
[WhiteClock "0:00:04"]
[BlackClock "0:00:01"]

1. d4 {[%clk 0:03:00]}  d5 {[%clk 0:02:59]} 2. Nf3 {[%clk 0:03:00]}  Nf6 {[%clk 0:02:59]} 3. c4 {[%clk 0:02:59]}  e6 {[%clk 0:02:58]} 4. e3 {[%clk 0:02:57]}  c5 {[%clk 0:02:56]} 5. dxc5 {[%clk 0:02:56]}  Bxc5 {[%clk 0:02:55]} 6. a3 {[%clk 0:02:57]}  O-O {[%clk 0:02:53]} 7. b4 {[%clk 0:02:57]}  Bb6 {[%clk 0:02:53]} 8. Bb2 {[%clk 0:02:57]}  a5 {[%clk 0:02:46]} 9. Nbd2 {[%clk 0:02:49]}  Nc6 {[%clk 0:02:33]} 10. c5 {[%clk 0:02:47]}  Bc7 {[%clk 0:02:31]} 11. b5 {[%clk 0:02:46]}  Ne7 {[%clk 0:02:30]} 12. Bd3 {[%clk 0:02:42]}  Ng6 {[%clk 0:02:28]} 13. O-O {[%clk 0:02:40]}  Qe7 {[%clk 0:02:24]} 14. a4 {[%clk 0:02:24]}  e5 {[%clk 0:02:17]} 15. Be2 {[%clk 0:02:21]}  Rd8 {[%clk 0:02:00]} 16. Rc1 {[%clk 0:02:15]}  Bf5 {[%clk 0:01:45]} 17. Re1 {[%clk 0:02:12]}  h5 {[%clk 0:01:43]} 18. c6 {[%clk 0:01:49]}  bxc6 {[%clk 0:01:38]} 19. Rxc6 {[%clk 0:01:50]}  Rac8 {[%clk 0:01:32]} 20. Qb3 {[%clk 0:01:42]}  Bd7 {[%clk 0:01:16]} 21. Rcc1 {[%clk 0:01:36]}  Bd6 {[%clk 0:01:15]} 22. Rxc8 {[%clk 0:01:27]}  Rxc8 {[%clk 0:01:15]} 23. Rc1 {[%clk 0:01:27]}  Rxc1+ {[%clk 0:01:15]} 24. Bxc1 {[%clk 0:01:28]}  Bb4 {[%clk 0:01:13]} 25. Nf1 {[%clk 0:01:23]}  h4 {[%clk 0:01:11]} 26. h3 {[%clk 0:01:22]}  Be6 {[%clk 0:01:10]} 27. Qc2 {[%clk 0:01:20]}  Ne4 {[%clk 0:01:04]} 28. Bd3 {[%clk 0:01:09]}  Bf5 {[%clk 0:00:56]} 29. Bb2 {[%clk 0:01:02]}  f6 {[%clk 0:00:54]} 30. N1d2 {[%clk 0:00:55]}  Nxd2 {[%clk 0:00:48]} 31. Bxf5 {[%clk 0:00:54]}  Nxf3+ {[%clk 0:00:49]} 32. gxf3 {[%clk 0:00:54]}  Nf8 {[%clk 0:00:49]} 33. b6 {[%clk 0:00:47]}  Bc5 {[%clk 0:00:36]} 34. Qb3 {[%clk 0:00:40]}  Qb7 {[%clk 0:00:36]} 35. Bc3 {[%clk 0:00:40]}  g6 {[%clk 0:00:31]} 36. Be4 {[%clk 0:00:38]}  Qxb6 {[%clk 0:00:29]} 37. Qxd5+ {[%clk 0:00:33]}  Kg7 {[%clk 0:00:29]} 38. Kg2 {[%clk 0:00:31]}  Bb4 {[%clk 0:00:29]} 39. Ba1 {[%clk 0:00:30]}  Qe6 {[%clk 0:00:26]} 40. Qb5 {[%clk 0:00:23]}  Qd7 {[%clk 0:00:23]} 41. Qc4 {[%clk 0:00:07]}  Qxa4 {[%clk 0:00:18]} 42. Bb2 {[%clk 0:00:08]}  Qd7 {[%clk 0:00:17]} 43. Bd5 {[%clk 0:00:08]}  Qf5 {[%clk 0:00:14]} 44. Qc7+ {[%clk 0:00:08]}  Qd7 {[%clk 0:00:11]} 45. Qc4 {[%clk 0:00:07]}  Qf5 {[%clk 0:00:11]} 46. Be4 {[%clk 0:00:06]}  Qe6 {[%clk 0:00:08]} 47. Qc2 {[%clk 0:00:06]}  Qd6 {[%clk 0:00:08]} 48. Qc4 {[%clk 0:00:05]}  Ne6 {[%clk 0:00:08]} 49. Qb5 {[%clk 0:00:03]}  Ng5 {[%clk 0:00:08]} 50. Bd5 {[%clk 0:00:03]}  Kh6 {[%clk 0:00:07]} 51. Qb7 {[%clk 0:00:03]}  Qe7 {[%clk 0:00:06]} 52. Qc6 {[%clk 0:00:03]}  Qd8 {[%clk 0:00:06]} 53. f4 {[%clk 0:00:03]}  exf4 {[%clk 0:00:02]} 54. Bxf6 {[%clk 0:00:03]}  Qf8 {[%clk 0:00:01]} 55. exf4 {[%clk 0:00:03]}  Nh7 {[%clk 0:00:02]} 56. Be5 {[%clk 0:00:02]}  Qf5 {[%clk 0:00:01]} 57. Be4 {[%clk 0:00:02]}  Qf7 {[%clk 0:00:01]} 58. f5 {[%clk 0:00:03]}  Ng5 {[%clk 0:00:01]} 59. Bf4 {[%clk 0:00:04]} 1-0


[Site "https://www.chess.com"]

[Event "Titled Tuesday Blitz January 31 Early 2023"]
[White "Svane, Rasmus"]
[Black "Ioannidis, Evgenios"]
[WhiteFideId "4657101"]
[BlackFideId "4229274"]
[WhiteElo "2623"]
[BlackElo "2467"]
[Result "0-1"]
[Round "05"]
[TimeControl "180+2"]
[Date "2023.01.31"]
[WhiteClock "0:00:32"]
[BlackClock "0:00:20"]

1. Nf3 {[%clk 0:03:00]}  d5 {[%clk 0:02:58]} 2. g3 {[%clk 0:02:57]}  g6 {[%clk 0:02:58]} 3. Bg2 {[%clk 0:02:57]}  Bg7 {[%clk 0:02:58]} 4. d4 {[%clk 0:02:57]}  c6 {[%clk 0:02:58]} 5. O-O {[%clk 0:02:58]}  Nf6 {[%clk 0:02:59]} 6. c4 {[%clk 0:02:58]}  dxc4 {[%clk 0:02:59]} 7. a4 {[%clk 0:02:58]}  Ne4 {[%clk 0:02:59]} 8. Qc2 {[%clk 0:02:58]}  Nd6 {[%clk 0:02:59]} 9. e4 {[%clk 0:02:57]}  Na6 {[%clk 0:02:56]} 10. Na3 {[%clk 0:02:56]}  Nb4 {[%clk 0:02:43]} 11. Qe2 {[%clk 0:02:56]}  O-O {[%clk 0:02:15]} 12. Rd1 {[%clk 0:02:55]}  Bg4 {[%clk 0:02:14]} 13. h3 {[%clk 0:02:52]}  Bxf3 {[%clk 0:02:10]} 14. Bxf3 {[%clk 0:02:53]}  Nd3 {[%clk 0:01:44]} 15. Be3 {[%clk 0:02:46]}  e5 {[%clk 0:01:44]} 16. dxe5 {[%clk 0:02:27]}  Bxe5 {[%clk 0:01:41]} 17. Rab1 {[%clk 0:02:20]}  Qf6 {[%clk 0:01:29]} 18. b3 {[%clk 0:02:08]}  Nb2 {[%clk 0:01:24]} 19. Rxb2 {[%clk 0:02:07]}  Bxb2 {[%clk 0:01:24]} 20. Rxd6 {[%clk 0:02:07]}  Qxd6 {[%clk 0:01:22]} 21. Qxb2 {[%clk 0:02:08]}  c3 {[%clk 0:01:14]} 22. Qc1 {[%clk 0:01:58]}  Qb4 {[%clk 0:00:59]} 23. Nb1 {[%clk 0:01:46]}  Qxb3 {[%clk 0:00:58]} 24. Nxc3 {[%clk 0:01:47]}  Rfd8 {[%clk 0:00:56]} 25. Bg5 {[%clk 0:01:42]}  Rd3 {[%clk 0:00:54]} 26. Qf4 {[%clk 0:01:02]}  Qxc3 {[%clk 0:00:48]} 27. Bg4 {[%clk 0:00:56]}  Re8 {[%clk 0:00:23]} 28. h4 {[%clk 0:00:53]}  Qe5 {[%clk 0:00:20]} 29. Qc1 {[%clk 0:00:32]}  Qxe4 {[%clk 0:00:21]} 30. Qc2 {[%clk 0:00:32]}  Rxg3+ {[%clk 0:00:20]} 0-1


[Site "https://www.chess.com"]

[Event "Titled Tuesday Blitz January 31 Early 2023"]
[White "Aradhya, Garg"]
[Black "Dominguez Perez, Leinier"]
[WhiteFideId "25006746"]
[BlackFideId "3503240"]
[WhiteElo "2284"]
[BlackElo "2739"]
[Result "0-1"]
[Round "05"]
[TimeControl "180+2"]
[Date "2023.01.31"]
[WhiteClock "0:00:07"]
[BlackClock "0:00:06"]

1. d4 {[%clk 0:03:00]}  d5 {[%clk 0:02:59]} 2. c4 {[%clk 0:03:01]}  dxc4 {[%clk 0:03:00]} 3. Nf3 {[%clk 0:02:58]}  c6 {[%clk 0:03:00]} 4. e3 {[%clk 0:02:57]}  Be6 {[%clk 0:03:00]} 5. Nbd2 {[%clk 0:02:54]}  Nf6 {[%clk 0:02:58]} 6. Bxc4 {[%clk 0:02:53]}  Bxc4 {[%clk 0:02:57]} 7. Nxc4 {[%clk 0:02:53]}  e6 {[%clk 0:02:58]} 8. O-O {[%clk 0:02:53]}  Qd5 {[%clk 0:02:57]} 9. Qe2 {[%clk 0:02:53]}  Nbd7 {[%clk 0:02:57]} 10. b3 {[%clk 0:02:52]}  Be7 {[%clk 0:02:56]} 11. Bb2 {[%clk 0:02:51]}  O-O {[%clk 0:02:57]} 12. Rac1 {[%clk 0:02:51]}  a5 {[%clk 0:02:56]} 13. Nfe5 {[%clk 0:02:51]}  a4 {[%clk 0:02:48]} 14. e4 {[%clk 0:02:29]}  Qb5 {[%clk 0:02:47]} 15. Rc3 {[%clk 0:02:28]}  Rfd8 {[%clk 0:02:38]} 16. Nxd7 {[%clk 0:02:23]}  Rxd7 {[%clk 0:02:27]} 17. Rg3 {[%clk 0:02:23]}  axb3 {[%clk 0:02:23]} 18. axb3 {[%clk 0:02:22]}  Ra2 {[%clk 0:02:18]} 19. Qe3 {[%clk 0:01:36]}  Qh5 {[%clk 0:02:01]} 20. h3 {[%clk 0:01:12]}  b5 {[%clk 0:02:00]} 21. Ne5 {[%clk 0:01:11]}  Rxb2 {[%clk 0:02:00]} 22. Nxd7 {[%clk 0:01:11]}  Nxd7 {[%clk 0:02:00]} 23. Qc3 {[%clk 0:01:11]}  Re2 {[%clk 0:01:30]} 24. Qxc6 {[%clk 0:01:09]}  Nf8 {[%clk 0:01:29]} 25. d5 {[%clk 0:01:06]}  exd5 {[%clk 0:01:20]} 26. exd5 {[%clk 0:01:06]}  Rd2 {[%clk 0:01:20]} 27. Re1 {[%clk 0:01:01]}  Rd1 {[%clk 0:00:44]} 28. Re3 {[%clk 0:00:55]}  Bg5 {[%clk 0:00:37]} 29. Re8 {[%clk 0:00:54]}  Rxe1+ {[%clk 0:00:30]} 30. Rxe1 {[%clk 0:00:54]}  Bd2 {[%clk 0:00:26]} 31. Re8 {[%clk 0:00:52]}  Qd1+ {[%clk 0:00:26]} 32. Kh2 {[%clk 0:00:52]}  Bb4 {[%clk 0:00:24]} 33. Qxb5 {[%clk 0:00:38]}  Qd4 {[%clk 0:00:21]} 34. Rd8 {[%clk 0:00:26]}  Be7 {[%clk 0:00:18]} 35. Qe8 {[%clk 0:00:15]}  Bxd8 {[%clk 0:00:12]} 36. Qxd8 {[%clk 0:00:16]}  Qxf2 {[%clk 0:00:11]} 37. d6 {[%clk 0:00:13]}  Qf4+ {[%clk 0:00:11]} 38. Kg1 {[%clk 0:00:13]}  Qe3+ {[%clk 0:00:10]} 39. Kh2 {[%clk 0:00:13]}  Qxb3 {[%clk 0:00:10]} 40. Qe7 {[%clk 0:00:12]}  Qd5 {[%clk 0:00:09]} 41. h4 {[%clk 0:00:12]}  h5 {[%clk 0:00:09]} 42. Qd8 {[%clk 0:00:11]}  g6 {[%clk 0:00:07]} 43. Qe7 {[%clk 0:00:10]}  Qe6 {[%clk 0:00:07]} 44. Qd8 {[%clk 0:00:10]}  Kg7 {[%clk 0:00:07]} 45. Qb6 {[%clk 0:00:09]}  Qe5+ {[%clk 0:00:07]} 46. Kg1 {[%clk 0:00:09]}  Nd7 {[%clk 0:00:07]} 47. Qb4 {[%clk 0:00:07]}  Qd5 {[%clk 0:00:06]} 0-1


[Site "https://www.chess.com"]